Cogmind - Beta 17 @@@ ROGUE MODE // 2026.06.24 @ 21:52:41 Player: Lorraine Result: Destroyed by G-50 Soldier with Heavy Laser Performance ------------- Evolutions (2) 1000 Regions Visited (4) 800 Robots Destroyed (41) 205 Value Destroyed (1146) 1146 Prototype IDs (5) 100 Alien Tech Used (0) 0 Bonus (317) 317 TOTAL SCORE: 3568 Bonus ------- Follower Combat Kills 317 Cogmind --------- Core Integrity 0/550 Matter 192/300 Energy 65/100 System Corruption 0% Temperature Cool (9) Movement Flying (195) Ox2 Location -8/Materials Parts ------- > --- POWER (2) -------- Backup Power I > --- PROPULSION (4) --- Cesium-ion Thruster > --- UTILITY (3) ------ Propulsion Shielding Propulsion Shielding Improved Propulsion Shielding > --- WEAPON (2) ------- Particle Gun Proton Missile Launcher > --- INVENTORY (5) ---- Nuclear Core Cryofiber Web Improved Field Recycling Unit (0) Heavy Particle Gun Peak State ------------ > --- POWER ------------ Backup Power I > --- PROPULSION ------- Flight Unit Cesium-ion Thruster > --- UTILITY ---------- Propulsion Shielding Propulsion Shielding Improved Propulsion Shielding > --- WEAPON ----------- Particle Gun Proton Missile Launcher > --- INVENTORY -------- Nuclear Core Cryofiber Web Heavy Particle Gun [Rating: 17] Favorites ----------- Power Ion Engine Engine Ion Engine Propulsion Improved Treads Treads Improved Treads Leg Aluminum Leg Wheel Wheel Hover Unit Hover Unit Flight Unit Flight Unit Utility Small Storage Unit Device Heat Sink Storage Small Storage Unit Processor Visual Processing Unit Protection Light Armor Plating Weapon Particle Gun Energy Gun Particle Gun Energy Cannon Light EM Pulse Cannon Ballistic Gun Assault Rifle Launcher Proton Missile Launcher Build | -11 -10 -9 -9 -8 ------- Run | Yrd Mat Mat Sto Mat Slots Evolved 4 | . . 2 . 2 Power 1 | . . 1 . . Propulsion 2 | . . 1 . 1 Utility 1 | . . . . 1 Weapon . | . . . . . Parts Attached 57 | 9 5 20 15 8 Power 10 | 1 . 6 2 1 Engine 10 | 1 . 6 2 1 Core . | . . . . . Reactor . | . . . . . Propulsion 26 | 4 3 10 7 2 Treads 7 | 2 . . 5 . Leg 6 | 1 1 2 2 . Wheel 1 | 1 . . . . Hover 4 | . . 4 . . Flight 8 | . 2 4 . 2 Utility 9 | 1 1 1 3 3 Device 2 | . 1 . 1 . Storage 1 | 1 . . . . Processor 2 | . . 1 1 . Hackware . | . . . . . Protection 4 | . . . 1 3 Artifact . | . . . . . Weapon 12 | 3 1 3 3 2 Energy Gun 8 | 1 1 3 2 1 Energy Cannon 1 | . . . 1 . Ballistic Gun 2 | 2 . . . . Ballistic Cannon . | . . . . . Launcher 1 | . . . . 1 Special Weapon . | . . . . . Impact Weapon . | . . . . . Slashing Weapon . | . . . . . Piercing Weapon . | . . . . . Special Melee Weapon . | . . . . . Unidentified Prototypes 2 | . . 1 . 1 Parts Lost 27 | . . 12 8 7 Power 6 | . . 2 3 1 Propulsion 14 | . . 8 3 3 Utility 3 | . . . 1 2 Weapon 4 | . . 2 1 1 Highest Loss Streak 6 | . . 6 2 6 To Critical Strikes 1 | . . 1 . . Average Backups 6 | 3 7 6 6 5 Power . | . 1 . . 1 Propulsion 2 | 2 5 2 . . Utility 1 | . . . 3 1 Weapon 1 | . . 2 2 1 Tool/Special . | . . . . . Unused Backups 11 | . 1 3 1 6 Power 2 | . . 1 . 1 Propulsion 2 | . 1 1 . . Utility 6 | . . 1 1 4 Weapon 1 | . . . . 1 Tool/Special . | . . . . . Average Slot Usage (%) 85 | . 96 89 86 60 Engine 15 | . 14 19 15 6 Treads 12 | . 6 . 22 13 Leg 7 | . 21 5 3 . Hover 3 | . . 13 . . Flight 4 | . . 10 3 5 Device 3 | . 10 3 . 4 Storage 10 | . 14 11 10 5 Processor 4 | . . 7 6 . Protection 3 | . . . 4 13 Energy Gun 15 | . 13 17 17 6 Energy Cannon 1 | . . . 1 4 Ballistic Gun 2 | . 14 . . . Peak Build Rating 17 | 6 7 13 16 17 Average Rating 10 | 5 6 10 12 11 On Entrance 6 | . 6 7 9 12 Avg Prop Armor Cover (%) 6 | 5 . 13 5 . Naked Turns . | . . . . . Heaviest Build 21 | 14 15 21 20 21 Greatest Support 69 | 40 40 30 69 66 Greatest Overweight (x) 4 | 1 1 4 2 2 Average Overweight (x) . | . . . . . Largest Inventory Capacity 8 | 8 8 8 8 8 Average Capacity 7 | 7 8 8 7 6 Most Carried 8 | 6 8 8 8 8 Average Carried 6 | 3 7 6 6 5 Final Capacity 8 | 8 8 8 8 5 Final Carried 8 | 6 8 5 7 4 Class Distribution -------------------- 71% | Mutant 26% | Scavenger-Mutant Dominant Class ---------------- Mutant | -10/Materials Scavenger-Mutant | -9/Materials Mutant | -9/Storage Mutant | -8/Materials Resources | -11 -10 -9 -9 -8 ----------- Run | Yrd Mat Mat Sto Mat Matter Collected 782 | 181 180 197 224 . Remotely . | . . . . . Salvage Created 1507 | . 180 348 800 179 Parts 92 | . 15 25 44 8 Haulers Intercepted . | . . . . . Recyclers Shooed 2 | . . 1 1 . Parts Field Recycled . | . . . . . Retrieved Matter . | . . . . . Parts Self-Destructed . | . . . . . Prevented . | . . . . . Parts Restored . | . . . . . Kills | -11 -10 -9 -9 -8 ------- Run | Yrd Mat Mat Sto Mat Combat Hostiles Destroyed 35 | . 6 11 15 3 Guns 27 | . 6 9 12 . Cannons 4 | . . . 3 1 AOE 4 | . . 2 . 2 Classes Destroyed 8 | . 2 3 3 . Worker 1 | . . . 1 . Recycler 2 | . . 1 1 . Operator 1 | . . . 1 . Watcher 2 | . . 1 1 . Swarmer 10 | . 2 8 . . Grunt 17 | . 4 2 9 2 Brawler 1 | . . . 1 . Sentry 7 | . . 1 5 1 Best Kill Streak 6 | . 4 6 5 2 Combat Bots Only 5 | . 4 5 3 2 Max Kills in Single Turn 2 | . 1 2 2 2 Gunslinging 1 | . . 1 . . Exploded 2 | . . 2 . 2 Melee . | . . . . . Uniques/NPCs Destroyed . | . . . . . Combat | -11 -10 -9 -9 -8 -------- Run | Yrd Mat Mat Sto Mat Hostile Shots Fired 403 | . 55 116 107 125 Missed 133 | . 21 30 35 47 Hits 270 | . 34 86 72 78 Melee 5 | . . . 5 . Projectile 265 | . 34 86 67 78 Critical Strikes 12 | . . 5 3 4 Damage Taken 3660 | . 331 1072 1008 1249 Core 963 | . 71 247 84 561 Absorbed by Shields . | . . . . . Redirected to Shielding 58 | . . . . 58 Regen/Repaired (Parts) 62 | . . . 62 . Core Remaining (%) 62 | 100 71 . 17 . Volleys Fired 100 | . 21 27 39 13 Largest 2 | . 2 2 2 2 Hottest 121 | . 90 101 121 120 Shots Fired 171 | . 42 40 68 21 Gun 155 | . 42 40 59 14 Cannon 13 | . . . 9 4 Launcher 3 | . . . . 3 Special . | . . . . . Kinetic 38 | . 38 . . . Thermal 85 | . 4 18 49 14 Explosive . | . . . . . Electromagnetic 48 | . . 22 19 7 Robot Hit Streak 10 | . 10 9 9 8 Robot Miss Streak 6 | . 6 3 3 5 Penetration Max . | . . . . . Secondary Targets 8 | . 2 4 2 . Max Gunslinging Chain 1 | . 1 1 1 . Shots Hit Robots 111 | . 23 25 49 14 Core Hits 59 | . 12 18 24 5 Critical Kills . | . . . . . Critical Parts Destroyed . | . . . . . Critical Strikes 1 | . . . . 1 Corrupt 1 | . . . . 1 Melee Attacks . | . . . . . Impact . | . . . . . Slashing . | . . . . . Piercing . | . . . . . Sneak Attacks . | . . . . . Combat Hostiles . | . . . . . Follow-up Attacks . | . . . . . Damage Inflicted 2249 | . 274 617 835 523 Guns 1421 | . 258 341 677 145 Cannons 215 | . . . 134 81 Explosions 499 | . . 216 . 283 Melee . | . . . . . Ramming 114 | . 16 60 24 14 Kinetic 235 | . 235 . . . Thermal 1061 | . 23 334 559 145 Explosive . | . . . . . Electromagnetic 839 | . . 223 252 364 Impact . | . . . . . Slashing . | . . . . . Piercing . | . . . . . Highest Corruption . | . . . . . Average Corruption . | . . . . . Corruption Purged . | . . . . . Corruption Blocked . | . . . . . Overload Shots . | . . . . . Overflow Damage 18 | . . 18 . . Projectiles . | . . . . . Explosions 18 | . . 18 . . Melee . | . . . . . Knockbacks 2 | . . 1 1 . Impact 2 | . . 1 1 . Kinetic . | . . . . . Secondary . | . . . . . Self-Inflicted Damage 104 | . . 100 . 4 Shots 3 | . . 3 . . Rammed 14 | . . 6 5 3 Targets Rammed 27 | . 7 11 6 3 Kicked 13 | . 7 5 1 . Crushed . | . . . . . Highest Temperature 354 | . 18 254 354 213 Average Temperature 105 | . 8 106 117 65 Received Heat Transfer 1506 | . 108 273 405 720 Effects 1 | . . 1 . . Interference 1 | . . 1 . . Siege Activations . | . . . . . Martial Activations . | . . . . . Shielding Activations . | . . . . . Robots Disrupted . | . . . . . Combat Hostiles . | . . . . . Robots Corrupted . | . . . . . Combat Hostiles . | . . . . . Parts Fried . | . . . . . Impact Corruptions . | . . . . . Robots Melted . | . . . . . Combat Hostiles . | . . . . . Parts Melted 3 | . . . 3 . Heat Transferred 2237 | . 62 547 1332 296 Parts Sabotaged . | . . . . . Parts Stolen . | . . . . . Parts Stripped . | . . . . . Power Chain Reactions 3 | . . 3 . . Alert | -11 -10 -9 -9 -8 ------- Run | Yrd Mat Mat Sto Mat Maximum Alert Level 1 | . . . 1 . Low Security (%) 96 | 100 100 100 89 100 Level 1 3 | . . . 10 . Level 2 . | . . . . . Level 3 . | . . . . . Level 4 . | . . . . . Level 5 . | . . . . . High Security . | . . . . . Max Security . | . . . . . Peak Influence 230 | . 105 156 230 98 Initial 86 | . . 15 31 86 Average 59 | . 27 50 103 44 Influence Increases 1602 | . 184 358 855 205 Destroy 0b10 Robot/C 920 | . 120 220 520 60 Destroy 0b10 Robot/NC 35 | . . 10 25 . Destroy Leader 254 | . 30 42 172 10 Allied During Kill 82 | . . . 82 . Successful Hack 53 | . 4 9 25 15 Disable Machine 45 | . 15 15 15 . Destroy Structure 18 | . . 17 1 . Partial Spotted 60 | . . 30 15 15 Lose Combat Pursuer 135 | . 15 15 . 105 Influence Decreases 1504 | . 147 320 724 313 Entered New Map 186 | . . 22 44 120 Time Decay 914 | . 147 193 424 150 Lost Part 224 | . . 105 76 43 Lost Ally 180 | . . . 180 . Squads Dispatched 14 | . 2 2 7 3 Investigation 8 | . 1 1 4 2 Extermination . | . . . . . Reinforcement 6 | . 1 1 3 1 Assault . | . . . . . Garrison . | . . . . . Intercept . | . . . . . Searches Triggered . | . . . . . Construction Impeded 1 | . . . . 1 Haulers Reinforced . | . . . . . Active Scanning Responses . | . . . . . Cargo Convoy Interrupts . | . . . . . Stealth | -11 -10 -9 -9 -8 --------- Run | Yrd Mat Mat Sto Mat Distress Signals 3 | . 1 . 2 . Communications Jammed . | . . . . . Distress Signals . | . . . . . Times Spotted 86 | . 18 21 31 16 Peak Tracking Total 8 | . 5 8 8 8 Tactical Retreats 6 | . 1 1 . 4 Traps | -11 -10 -9 -9 -8 ------- Run | Yrd Mat Mat Sto Mat Traps Triggered 4 | . 1 . 3 . Indirectly . | . . . . . Trap Hack Attempts . | . . . . . Triggered . | . . . . . Disarmed 3 | . . . 3 . Reprogrammed . | . . . . . Reused . | . . . . . Traps Extracted . | . . . . . Installed . | . . . . . Triggered . | . . . . . Machines | -11 -10 -9 -9 -8 ---------- Run | Yrd Mat Mat Sto Mat Machines Disabled 3 | . 1 1 1 . Max in Single Turn 1 | . 1 1 1 . Machines Repaired . | . . . . . Machines Dismantled . | . . . . . Machines Sabotaged . | . . . . . Overloaded Fab Kills . | . . . . . Hacking | -11 -10 -9 -9 -8 --------- Run | Yrd Mat Mat Sto Mat Machines Accessed 16 | . 2 4 6 4 Terminals 11 | . 2 1 5 3 Fabricators . | . . . . . Repair Stations 2 | . . 1 1 . Recycling Units . | . . . . . Scanalyzers 3 | . . 2 . 1 Garrison Access . | . . . . . Total Hacks 50 | . 4 11 19 16 Successful 29 | . 2 7 9 11 Failed 21 | . 2 4 10 5 Catastrophic 6 | . 2 . 3 1 Database Lockouts . | . . . . . Manual 6 | . 2 4 . . Terminals 36 | . 4 3 15 14 Fabricators . | . . . . . Repair Stations 6 | . . 2 4 . Recycling Units . | . . . . . Scanalyzers 8 | . . 6 . 2 Garrison Access . | . . . . . Terminal Hacks 20 | . 2 2 6 10 Record 7 | . 1 . 1 5 Prototype ID Bank 1 | . . 1 . . Open Door 1 | . . . 1 . Alert Level 1 | . . . . 1 Locate Traps 3 | . 1 . 2 . Disarm Traps 1 | . . . 1 . Dispatch Records 2 | . . 1 . 1 Transport Status 1 | . . . . 1 Registered Components 1 | . . . . 1 Zone Layout 2 | . . . 1 1 Fabricator Hacks . | . . . . . Repair Station Hacks 4 | . . 1 3 . Scan Component 2 | . . 1 1 . Repair 1 | . . . 1 . Refit 1 | . . . 1 . Recycling Unit Hacks . | . . . . . Scanalyzer 5 | . . 4 . 1 Insert Component 3 | . . 3 . . Retrieve Study 2 | . . 1 . 1 Garrison Access Hacks . | . . . . . Unauthorized Hacks . | . . . . . Terminals . | . . . . . Fabricators . | . . . . . Repair Stations . | . . . . . Recycling Units . | . . . . . Scanalyzers . | . . . . . Garrison Access . | . . . . . Data Cores Recovered . | . . . . . Used . | . . . . . Hacking Detections 12 | . 1 3 5 3 Full Trace Events 10 | . 1 2 5 2 Feedback Events . | . . . . . Feedback Blocked . | . . . . . Robot Schematics Acquired . | . . . . . Robots Built . | . . . . . Authchips . | . . . . . Time . | . . . . . Total Robot Build Rating . | . . . . . Part Schematics Acquired . | . . . . . Parts Built . | . . . . . Authchips . | . . . . . Time . | . . . . . Total Part Build Rating . | . . . . . Part Studies Acquired 2 | . . 1 . 1 Parts Repaired 1 | . . . 1 . Time 26 | . . . 26 . Parts Recycled . | . . . . . Recycled Matter . | . . . . . Retrieved Matter . | . . . . . Retrieved Components . | . . . . . Parts Scanalyzed . | . . . . . Part Schematics Acquired . | . . . . . Parts Damaged . | . . . . . Bothacking | -11 -10 -9 -9 -8 ------------ Run | Yrd Mat Mat Sto Mat Used RIF Installer . | . . . . . Robots Hacked . | . . . . . Non-combat . | . . . . . Combat . | . . . . . Robot Hacks Applied . | . . . . . Relay Couplers Released . | . . . . . Fabnet Peak Effective % . | . . . . . Robots Rewired . | . . . . . Allies Hacked . | . . . . . Hacks Repelled . | . . . . . Allies | -11 -10 -9 -9 -8 -------- Run | Yrd Mat Mat Sto Mat Total Allies 10 | . . . 10 . Largest Group 10 | . . . 10 . Highest-Rated Group 88 | . . . 88 . Highest-Rated Ally 16 | . . . 16 . Total Orders . | . . . . . Ally Attacks 89 | . . . 89 . Total Damage 936 | . . . 936 . Kills 12 | . . . 12 . Allies Corrupted . | . . . . . Allies Melted . | . . . . . Intel | -11 -10 -9 -9 -8 ------- Run | Yrd Mat Mat Sto Mat Active Infowar (turns) 1015 | . . 439 576 . Optics 1015 | . . 439 576 . Robot Analysis Total . | . . . . . Derelict Logs Recovered . | . . . . . Drone Launches . | . . . . . Drone Recoveries . | . . . . . Exploration | -11 -10 -9 -9 -8 ------------- Run | Yrd Mat Mat Sto Mat Turns Passed 2931 | 294 518 675 1069 375 Spaces Moved 2235 | 176 343 618 711 387 Core 10 | 1 . 9 . . Treads 634 | 89 47 . 398 100 Legs 523 | 84 296 34 109 . Wheels 2 | 2 . . . . Hover 345 | . . 345 . . Flight 721 | . . 230 204 287 Fastest Speed 34 | 50 120 34 37 34 Average Speed 100 | 155 125 59 121 77 Slowest Speed 260 | 190 190 260 200 195 Overloaded Moves . | . . . . . Propulsion Burnouts . | . . . . . Robots Hopped 32 | . . 20 10 2 Potential Cave-ins . | . . . . . Cave-ins Triggered . | . . . . . Exploration Rate (%) 35 | 5 41 33 70 29 Regions Visited 4 Branch Regions 1 Pre-discovered Areas . | . . . . . Known Exits Taken . | . . . . . Unknown Exits Taken 4 | 1 1 1 1 . Scrap Searched . | . . . . . Spaces Dug . | . . . . . Terrain Destroyed 16 | . . 16 . . Melee . | . . . . . Projectile . | . . . . . AOE 16 | . . 16 . . Terrain Rammed . | . . . . . Walls Destroyed . | . . . . . Machines Disabled . | . . . . . Actions | -11 -10 -9 -9 -8 --------- Run | Yrd Mat Mat Sto Mat Total 2712 | 192 388 862 831 439 Wait 201 | . . 158 37 6 Move 2178 | 175 342 587 690 384 Hop 21 | . . 10 10 1 Pick Up 47 | 6 5 16 12 8 Fast Attach 37 | 6 3 11 14 3 Attach 29 | 1 . 12 7 9 Detach 22 | 1 1 8 8 4 Swap 15 | 3 5 3 2 2 Drop 35 | . 4 19 6 6 Fire 100 | . 21 27 39 13 Melee . | . . . . . Ram 8 | . . 6 . 2 Kick 13 | . 7 5 1 . Crush 6 | . . . 5 1 Escape Stasis . | . . . . . Rewire . | . . . . . Trap . | . . . . . Miscellaneous . | . . . . . Route ------- -11/Scrapyard -10/Materials (discovered 2 exits: *Mat / [*Min]) -9/Materials -9/Storage -8/Materials (discovered 1 exit: [*Fac]) History --------- Turn | Location | Event 8 | -11/Scrapyard | Discovered new exit (range 15) 295 | -11/Scrapyard | Entered Materials 315 | -10/Materials | Build established: Mutant 500 | -10/Materials | Discovered new exit (range 16) 766 | -10/Materials | Discovered new exit (range 12) 813 | -10/Materials | Entered another Materials area 813 | -9/Materials | Evolved 2 slots: Power x1, Propulsion x1 1160 | -9/Materials | Lost 3 parts (1p2n) 1240 | -9/Materials | Core integrity fell below 50% 1266 | -9/Materials | Lost 6 parts (1p3n2w) 1291 | -9/Materials | Discovered new exit (range 15) 1488 | -9/Materials | Entered Storage 1532 | -9/Storage | Build established: Scavenger-Mutant 1570 | -9/Storage | Assisted by bots powering up and referring to "LRC-V3" 1641 | -9/Storage | Lost 6 allies 1775 | -9/Storage | Discovered new exit (range 18) 2060 | -9/Storage | Repaired Sml. Storage Unit 2116 | -9/Storage | Build established: Mutant 2456 | -9/Storage | Core integrity fell below 20% 2557 | -9/Storage | Entered Materials 2557 | -8/Materials | Evolved 2 slots: Propulsion x1, Utility x1 2773 | -8/Materials | Core integrity fell below 50% 2780 | -8/Materials | Lost 6 parts (1p2n2u1w) 2841 | -8/Materials | Discovered new exit (range 14) 2917 | -8/Materials | Core integrity fell below 20% 2932 | -8/Materials | Destroyed by G-50 Soldier with Heavy Laser Last Messages --------------- [Human] city, developed over the several decades following deployment of Project [Seraph] in 2211. Surrounding the complex are cave systems and old mining tunnels now populated by Derelicts. >>Alert(Check) Current Alert Level: Low Security >>Enumerate(Transport) Retrieving latest reported positions... Found 6 active transport squads. Downloaded coordinate data. Acquired Proton Missile Launcher. Critical hit (Burn: +37). Flight Unit+ destroyed. Acquired Imp. Field Recycling Unit. U-05 Engineer lays Concrete. G-47 Trooper destroyed. ALERT: Construction progress impeded, dispatching reinforcements to local area. Y-45 Defender misfires. Map ----- +----------------------------------------------------+ | ????????????# + | | ????????????# "" ## """ | | ???########## "T ## """ | | ???# """" # "" ## """ | | ???# ""S"" # ## | | ???# "" "" # ######## | | ???# # | | ???# + | | ???# """ # | | ???# """ # ###+########### | | ???# """ # # T #????# | | ???# # < # """#????# | | ???######## # # """#????# | | ??????????####### """###### | | ????????????????# / | | ????????????????# """###### | | ????????????????# """#????# | | ????????????????# """#????# | | ????????######### ???????# | | ????????# ############???# | | ????##### T ## """"" #???# | | ????#[[ # ## ""T"" #???# | | ????#[[ # ## #???# | | ????#]] # ## #???? | | ????#] # ###### #####???? | | ????#!@ #/# ####### #?????? | | ????#! gg !%= ####### | | ????#####g Y*b | | ????????# =%= ####### | | ????????########### #?????? | | ??????????????????#######?????? | | ??????????????????????????????? | | ??????????????????????????????? | | | | | | | | | | | | | | | | | | | | | | | | | | | | | | | | | | | +----------------------------------------------------+ Best States ------------- Heat Dissipation 41 Energy Generation 15 Energy Capacity 400 Matter Stores 300 Matter Capacity 300 Sight Range 18 Terrain Scan Density 10 Armor Coverage 150 Propulsion Shielding 66 Evasion (%) 63 Recoil Reduction 3 Item Schematics ----------------- None Robot Schematics ------------------ None Fabricated ------------ Nothing Repaired ---------- Sml. Storage Unit | 58% | -9/Storage Studied --------- Lgt. Ion Engine | -9/Materials | Hacked Flight Unit | -8/Materials | Hacked Alien Tech Used ----------------- None Achievements -------------- Cya! Challenges ------------ None Game ------ Seed ChipThermalMaxwheels Manual? 0 Play Time 01:31:27 Cumulative 16.9 hours Start 2026.06.22 @ 21:32:00 End 2026.06.24 @ 21:52:41 Sessions 1 Manual Loads 0 Difficulty Rogue Special Mode None Game No. 29 Rogue 29 Adventurer 0 Explorer 0 Win Type - Total 0 Types 0/0/0/0/0/0/0/0/0/0 Lore% 9 Gallery% 15 Achievement% 12 Wizard Run 0 Options --------- Layout 1 ASCII 1 Keyboard 1 Movement Arrows Keybinds 0 Fullscreen 1 Font 24/Smallcaps Map View 50x35 Zoom Use 0% Tactical HUD 0 Map Filters NONE Filters NONE Steam 1 RUN: b60b0636-5667-4953-9fee-91791cfb4f3d